bitfinex-derivatives/quotes_ETHF0:USTF0_20250708
["timestamp","ask_amount","ask_price","bid_price","bid_amount"]
[1752012299338,2.7472243,2610.0,2609.9,0.6386]
[1752012299539,2.9195243,2610.0,2609.7,4.40556161]
[1752012299739,2.0573843,2609.8,2609.7,4.40556161]
[1752012299939,2.7472843,2609.8,2609.7,26.337]
[1752012300140,4.0472843,2609.8,2609.7,26.337]
[1752012300341,0.76619,2609.7,2609.6,3.42796161]
[1752012300541,2.75609,2609.7,2609.6,29.76496161]
[1752012300736,2.75609,2609.7,2609.6,26.337]
[1752012300941,2.75609,2609.7,2609.6,26.9756]
[1752012301142,0.76622,2609.6,2609.5,3.42796161]
[1752012301342,2.7473443,2609.6,2609.5,30.40456161]
[1752012301537,2.7473443,2609.6,2609.5,27.74285]
[1752012301843,0.76625,2609.5,2609.4,4.44936161]
[1752012302042,0.76625,2609.5,2609.4,1.66]
[1752012302443,2.10155,2609.5,2609.4,1.0214]
[1752012302642,3.08935,2609.5,2609.4,1.0214]
[1752012302843,2.3231,2609.5,2609.2,3.42796161]
[1752012303041,0.76631,2609.3,2609.2,26.334]
[1752012303443,0.76636,2609.1,2609.0,4.43196161]
[1752012303640,2.0575843,2609.1,2609.0,26.336]
[1752012304041,0.76642,2608.9,2608.8,0.76644]
[1752012304243,0.76645,2608.8,2608.7,0.76647]
[1752012304535,1.2912243,2609.1,2608.8,0.76644]
[1752012304536,0.76644,2608.9,2608.8,0.76644]
[1752012305550,1.45634,2608.9,2608.8,1.40504]
[1752012305841,0.76644,2608.9,2608.8,0.6386]
[1752012306142,0.76644,2608.9,2608.8,1.40505]
[1752012306839,0.76644,2608.9,2608.8,0.6386]
[1752012306840,2.7475643,2608.9,2608.8,0.6386]
[1752012307044,2.7475643,2608.9,2608.8,1.40505]
[1752012308147,2.7475643,2608.9,2608.8,27.73905]
[1752012309544,2.7475643,2608.9,2608.6,2.0175]
[1752012309545,2.7475643,2608.9,2608.6,1.004]
[1752012309745,3.2074643,2608.7,2608.2,8.41587161]
[1752012310042,1.4565,2608.3,2608.2,9.33226161]
[1752012310252,1.4565,2608.3,2608.2,3.2078]
[1752012310253,2.3949,2608.3,2608.2,3.2078]
[1752012310445,3.666,2608.3,2608.2,3.2078]
[1752012310748,0.76672,2607.9,2607.8,4.1882]
[1752012310945,0.7667,2608.0,2607.9,0.76672]
[1752012311144,0.7667,2608.0,2607.9,2.41882]
[1752012311347,0.76667,2608.2,2608.1,0.76664]
[1752012311548,1.45657,2608.2,2608.1,27.75424]
[1752012311745,0.76667,2608.2,2608.1,28.76774]
[1752012312044,0.76659,2608.4,2608.3,0.76657]
[1752012312245,0.76659,2608.4,2608.3,27.76017]
[1752012312546,0.76659,2608.4,2608.3,28.77367]
[1752012313245,1.2912243,2608.6,2608.3,28.0071]
[1752012313450,0.76656,2608.5,2608.4,1.78004]
[1752012313847,1.45646,2608.5,2608.4,2.41864]
[1752012316053,1.45646,2608.5,2608.4,0.6386]
[1752012316251,0.76657,2608.4,2608.3,26.355]
[1752012316453,1.45647,2608.4,2608.3,26.355]
[1752012316754,2.7476943,2608.4,2608.3,27.7602]
[1752012318555,2.7476943,2608.4,2608.3,1.4052]
[1752012318853,2.7476943,2608.4,2608.3,27.7502]
[1752012321356,2.7476943,2608.4,2608.3,28.7637]
[1752012321556,2.7476943,2608.4,2608.3,27.7502]
[1752012322955,2.7476943,2608.4,2608.3,26.9836]
[1752012323458,2.7476943,2608.4,2608.3,0.6386]
[1752012323653,0.76669,2608.0,2607.9,3.2078]
[1752012323854,0.76672,2607.9,2607.8,1.0659]
[1752012324054,3.76872,2607.9,2607.8,1.0659]
[1752012324257,3.76872,2607.9,2607.8,27.4039]
[1752012324561,3.76872,2607.9,2607.8,28.0472]
[1752012324764,3.76872,2607.9,2607.8,28.81395]
[1752012325254,3.76872,2607.9,2607.8,28.81595]
[1752012325456,1.40862,2607.9,2607.8,28.81595]
[1752012325956,1.40862,2607.9,2607.8,2.47595]
[1752012326156,1.40862,2607.9,2607.8,28.81395]
[1752012328054,0.76672,2607.9,2607.8,29.76265]
[1752012330157,0.76672,2608.0,2607.9,0.76667]
[1752012330358,1.40862,2608.0,2607.9,2.36767]
[1752012330556,1.91645,2608.4,2607.9,6.1000243]
[1752012330757,0.76666,2608.2,2608.1,0.76664]
[1752012330957,0.76666,2608.2,2608.1,27.74294]
[1752012331158,0.76666,2608.2,2608.1,28.70064]
[1752012331353,0.76662,2608.3,2608.2,0.76658]
[1752012331557,0.76662,2608.3,2608.2,2.42738]
[1752012331862,0.76654,2608.6,2608.5,0.76652]
[1752012332055,0.76654,2608.5,2608.4,27.10256]
[1752012332362,0.76653,2608.6,2608.5,0.76651]
[1752012332658,2.16322065,2608.6,2608.5,2.36751]
[1752012333559,0.76653,2608.6,2608.5,2.36751]
[1752012333854,0.76653,2608.6,2608.5,1.601]
[1752012334059,1.40843,2608.6,2608.5,1.40984]
[1752012334359,2.38273042,2608.6,2608.5,2.36754]
[1752012334559,0.9851,2608.6,2608.5,2.36754]
[1752012334760,0.9851,2608.6,2608.5,3.67574]
[1752012339260,1.75161,2608.6,2608.5,3.67574]
[1752012339761,1.75161,2608.6,2608.5,6.88354]
[1752012340161,1.75161,2608.6,2608.5,5.57534]
[1752012341057,3.0428343,2608.6,2608.5,3.8511]
[1752012341262,3.6847343,2608.6,2608.5,26.309]
[1752012341462,0.76657,2608.4,2608.3,3.42796161]
[1752012341658,0.76663,2608.2,2608.1,3.42796161]
[1752012341861,2.6997543,2608.2,2608.1,3.42796161]
[1752012342059,3.6957543,2608.2,2608.1,3.42796161]
[1752012342260,0.76666,2608.1,2608.0,3.42796161]
[1752012342461,4.0387843,2608.1,2608.0,3.42796161]
[1752012342670,0.76669,2608.0,2607.9,26.321]
[1752012342964,2.74759,2608.0,2607.9,26.321]
[1752012343166,2.74759,2608.0,2607.9,27.73102]
[1752012343563,2.74759,2608.0,2607.9,26.9643]
[1752012344056,2.74759,2608.0,2607.9,27.73102]
[1752012345267,2.74759,2608.0,2607.9,26.9643]
[1752012345462,2.74759,2608.0,2607.9,0.6433]
[1752012345666,2.74759,2608.0,2607.9,27.72102]
[1752012346466,2.74759,2608.0,2607.9,26.9543]
[1752012346965,2.74759,2608.0,2607.9,27.72102]
[1752012348468,2.74759,2608.0,2607.9,1.41002]
[1752012348765,2.74759,2608.0,2607.9,27.72102]
[1752012349461,2.74759,2608.0,2607.9,31.15464417]
[1752012349660,2.74759,2608.0,2607.9,27.72102]
[1752012350766,2.74759,2608.0,2607.9,26.9543]
[1752012351166,2.74759,2608.0,2607.9,26.9553]
[1752012354370,0.76675,2607.8,2607.7,1.0053]
[1752012354565,2.6882743,2607.8,2607.7,0.6637]
[1752012354772,0.76678,2607.7,2607.6,3.43362417]
[1752012354968,3.81188,2607.7,2607.6,29.74562417]
[1752012355166,3.81188,2607.7,2607.6,3.43362417]
[1752012355368,0.76681,2607.6,2607.5,6.64142417]
[1752012355571,4.0289343,2607.6,2607.5,32.95342417]
[1752012355867,4.0289343,2607.6,2607.5,33.61712417]
[1752012356171,4.0289343,2607.6,2607.5,32.95342417]
[1752012356566,4.0289343,2607.6,2607.5,33.61712417]
[1752012357163,4.0289343,2607.6,2607.5,30.1835]
[1752012359873,2.6883343,2607.6,2607.5,30.1835]
[1752012360469,2.6883343,2607.6,2607.5,3.8715]
[1752012360676,2.0580343,2607.6,2607.5,30.28764]
[1752012360875,2.6883343,2607.6,2607.5,31.94024]
[1752012361375,2.6883343,2607.6,2607.5,31.1734]
[1752012361875,3.6713343,2607.6,2607.5,31.1734]
[1752012362676,3.6713343,2607.6,2607.5,31.94024]
[1752012363075,2.38011,2607.6,2607.5,31.94024]
[1752012364173,2.38011,2607.6,2607.5,3.2078]
[1752012364379,2.38011,2607.6,2607.5,29.5228]
[1752012364581,2.38011,2607.6,2607.5,30.1865]
[1752012365780,3.64531,2607.6,2607.5,26.9787]
[1752012366782,0.76684,2607.5,2607.4,1.0627]
[1752012366981,5.0262643,2607.5,2607.4,28.0414]
[1752012367683,5.0262643,2607.5,2607.4,27.3777]
[1752012367882,5.0262643,2607.5,2607.4,28.0414]
[1752012368182,5.0262643,2607.5,2607.4,27.3777]
[1752012368375,5.0262643,2607.5,2607.4,28.0414]
[1752012369379,4.3959643,2607.5,2607.4,28.0414]
[1752012369682,5.0262643,2607.5,2607.4,28.0414]
[1752012369879,4.3959643,2607.5,2607.4,1.7264]
[1752012370083,3.7610643,2607.5,2607.4,28.0414]
[1752012370284,2.6883643,2607.5,2607.4,28.0414]
[1752012370486,2.6883643,2607.5,2607.4,1.7264]
[1752012370686,2.6883643,2607.5,2607.4,28.0414]
[1752012370986,2.6883643,2607.5,2607.4,29.0303]
[1752012371382,0.76695,2607.1,2606.8,3.43362417]
[1752012371584,2.0581743,2607.1,2607.0,1.7291]
[1752012371783,0.76695,2607.1,2607.0,1.7291]
[1752012371981,0.76695,2607.1,2607.0,2.718]
[1752012372182,0.76695,2607.1,2607.0,1.0654]
[1752012372383,2.0581743,2607.1,2607.0,1.7291]
[1752012372787,2.6884743,2607.1,2607.0,1.7291]
[1752012373983,2.6884743,2607.1,2607.0,26.317]
[1752012374385,0.76701,2606.9,2606.8,1.0624]
[1752012374583,2.6885343,2606.9,2606.8,1.7261]
[1752012374787,2.0582343,2606.9,2606.8,1.7261]
[1752012375086,2.6885343,2606.9,2606.8,28.0431]
[1752012375480,2.6885343,2606.9,2606.8,1.7261]
[1752012375687,2.0582343,2606.9,2606.8,27.3794]
[1752012375888,2.6885343,2606.9,2606.8,28.0451]
[1752012376389,2.0582343,2606.9,2606.8,28.0451]
[1752012376589,2.6885343,2606.9,2606.8,28.0451]
[1752012378487,2.6885343,2606.9,2606.8,1.7261]
[1752012378787,2.6885343,2606.9,2606.8,28.0441]
[1752012379588,3.6710343,2606.9,2606.8,28.0441]
[1752012379788,3.6710343,2606.9,2606.8,1.7261]
[1752012382191,3.6710343,2606.9,2606.4,7.63032417]
[1752012382192,0.76713,2606.5,2606.4,7.63032417]
[1752012382490,0.76713,2606.5,2606.4,1.6762]
[1752012382684,1.39773,2606.5,2606.4,27.9952]
[1752012383084,1.39773,2606.5,2606.4,0.6873]
[1752012383289,0.76719,2606.3,2606.2,3.43362417]
[1752012383491,2.6890143,2606.3,2606.2,28.0351]
[1752012383688,2.6890143,2606.3,2606.2,1.0278]
[1752012383893,2.6890143,2606.3,2606.2,1.7151]
[1752012384392,2.6890143,2606.3,2605.9,58.66462417]
[1752012384393,0.76728,2606.0,2605.9,55.231]
[1752012384588,2.0585043,2606.0,2605.9,56.2588]
[1752012384789,2.6891043,2606.0,2605.9,1.0278]
[1752012384988,2.6891043,2606.0,2605.9,28.0351]
[1752012385194,2.6891043,2606.0,2605.9,29.0343]
[1752012385394,2.0585043,2606.0,2605.9,29.0343]
[1752012385898,0.76723,2606.3,2605.9,35.95256]
[1752012386193,6.06862,2606.7,2606.1,3.97503]
[1752012386194,0.76722,2606.2,2606.1,3.97503]
[1752012386392,0.76722,2606.2,2606.1,30.29703]
[1752012386790,0.76722,2606.2,2606.1,3.97503]
[1752012386992,2.0584443,2606.2,2606.1,29.5298]
[1752012387592,2.6890443,2606.2,2606.1,29.5298]
[1752012389098,2.6890443,2606.2,2606.1,26.322]
[1752012389599,2.6890443,2606.2,2606.1,27.0093]
[1752012390300,2.6890443,2606.2,2606.1,26.322]
[1752012390905,0.76728,2606.0,2605.9,1.0278]
[1752012391105,2.6891043,2606.0,2605.9,28.0401]
[1752012391300,2.0585043,2606.0,2605.9,28.0401]
[1752012391801,2.6891043,2606.0,2605.9,28.80741]
[1752012392003,2.0585043,2606.0,2605.9,29.80661]
[1752012392206,3.0406043,2606.0,2605.9,29.80661]
[1752012392703,3.6712043,2606.0,2605.9,0.76731]
[1752012393005,3.6712043,2606.0,2605.9,0.6873]
[1752012394306,0.76739,2605.6,2605.5,0.9627]
[1752012394499,11.1621486,2606.0,2605.5,2.6492]
[1752012394500,2.2733243,2606.0,2605.5,2.6492]
[1752012394707,2.2733243,2606.0,2605.7,0.76735]
[1752012394708,0.76737,2605.8,2605.7,0.76735]
[1752012394908,0.76737,2605.8,2605.7,2.45385]
[1752012396012,0.76734,2605.8,2605.7,5.66165]
[1752012396213,0.76734,2605.8,2605.7,6.96435]
[1752012397216,0.76733,2605.9,2605.8,0.76731]
[1752012397413,1.74939,2606.0,2605.9,0.76731]
[1752012397614,1.74939,2606.0,2605.9,1.45461]
[1752012397915,1.74939,2606.0,2605.9,3.75651]
[1752012398119,0.9821,2606.0,2605.9,3.75651]
[1752012398314,0.9821,2606.0,2605.9,8.75651]
[1752012398615,0.76721,2606.3,2606.2,0.76722]
[1752012398814,0.76721,2606.3,2606.2,27.09522]
[1752012399017,0.76721,2606.3,2606.2,28.09442]
[1752012399212,0.76721,2606.3,2606.2,28.78172]
[1752012400411,0.76725,2606.1,2606.0,29.5348]
[1752012400617,2.6890743,2606.1,2606.0,27.0143]
[1752012401718,2.6890743,2606.1,2606.0,0.6873]
[1752012402020,2.6890743,2606.1,2606.0,1.45458]
[1752012402221,2.6890743,2606.1,2606.0,0.6873]
[1752012402821,1.39785,2606.1,2606.0,1.45458]
[1752012403020,1.39785,2606.1,2606.0,0.6873]
[1752012403723,0.76728,2606.0,2605.9,26.327]
[1752012403926,1.39788,2606.0,2605.9,27.0143]
[1752012404729,2.68698,2606.0,2605.9,27.0143]
[1752012405624,0.76734,2605.8,2605.7,3.2078]
[1752012405826,0.76734,2605.8,2605.7,31.98867]
[1752012407726,1.39794,2605.8,2605.7,31.2213]
[1752012408122,0.76734,2605.8,2605.7,31.2213]
[1752012408329,0.76734,2605.8,2605.7,31.98867]
[1752012408625,1.39794,2605.8,2605.7,31.98867]
[1752012408825,1.39794,2605.8,2605.7,3.8951]
[1752012409018,1.39794,2605.8,2605.7,30.2231]
[1752012409423,4.09387848,2605.8,2605.7,3.8951]
[1752012409718,4.09387848,2605.8,2605.7,30.2231]
[1752012412126,1.39794,2605.8,2605.7,31.2223]
[1752012412925,1.39794,2605.8,2605.7,30.2231]
[1752012413630,1.39794,2605.8,2605.7,29.5358]
[1752012414129,1.39794,2605.8,2605.7,3.2078]
[1752012414331,0.76737,2605.7,2605.6,3.43362417]
[1752012414530,7.39290848,2605.7,2605.6,3.43362417]
[1752012414829,6.40000848,2605.7,2605.6,3.43362417]
[1752012415433,6.40000848,2605.7,2605.6,4.06232417]
[1752012415624,0.76737,2605.7,2605.6,5.09182417]
[1752012416933,0.76737,2605.7,2605.6,1.6582]
[1752012417122,1.45987,2605.7,2605.6,5.09182417]
[1752012417326,1.45987,2605.7,2605.6,4.06232417]
[1752012417630,1.45987,2605.7,2605.6,0.6287]
[1752012418430,0.76739,2605.6,2605.5,29.76162417]
[1752012418630,0.76739,2605.6,2605.5,31.15774417]
[1752012418832,1.45989,2605.6,2605.5,31.15774417]
[1752012419127,1.45989,2605.6,2605.5,32.18724417]
[1752012419326,1.45989,2605.6,2605.5,30.39132417]
[1752012420026,1.45989,2605.6,2605.5,31.42082417]
[1752012420629,1.45989,2605.6,2605.5,26.9577]
[1752012420832,1.45989,2605.6,2605.5,30.40056601]
[1752012422426,1.45989,2605.6,2605.5,4.07156601]
[1752012422732,2.78309,2605.6,2605.5,30.40056601]
[1752012422933,4.07997845,2605.6,2605.5,30.40056601]
[1752012423434,4.07997845,2605.6,2605.5,26.9577]
[1752012424835,4.07997845,2605.6,2605.5,0.6287]
[1752012425436,0.76745,2605.4,2605.3,3.44286601]
[1752012425637,2.75683845,2605.4,2605.3,30.40156601]
[1752012425837,2.75683845,2605.4,2605.3,26.9587]
[1752012428338,2.06433845,2605.4,2605.3,26.9587]
[1752012428736,2.06433845,2605.4,2605.3,0.6287]
[1752012428936,2.75683845,2605.4,2605.3,26.9587]
[1752012429137,2.75683845,2605.4,2605.3,0.6287]
[1752012429338,0.76748,2605.3,2605.2,26.33]
[1752012429538,1.45998,2605.3,2605.2,26.33]
[1752012429738,1.45998,2605.3,2605.2,26.9587]
[1752012430141,0.76748,2605.3,2605.2,26.9587]
[1752012430433,1.45998,2605.3,2605.2,26.9587]
[1752012430833,1.45998,2605.3,2605.2,27.72621]
[1752012431038,0.76748,2605.3,2605.2,28.75571]
[1752012431236,0.76748,2605.3,2605.2,30.06961]
[1752012431940,5.12623,2605.7,2605.2,29.3021]
[1752012432134,0.76746,2605.5,2605.4,0.7674]
[1752012432334,0.76746,2605.5,2605.4,28.7556]
[1752012432938,0.76746,2605.5,2605.4,27.9882]
[1752012434040,0.76746,2605.5,2605.4,28.75565]
[1752012434334,0.7674,2605.7,2605.6,0.76736]
[1752012434536,0.7674,2605.7,2605.6,31.196]
[1752012434537,1.41785833,2605.7,2605.6,31.196]
[1752012434741,0.76737,2605.7,2605.6,31.196]
[1752012434942,0.76737,2605.7,2605.6,32.52]
[1752012435538,0.76737,2605.7,2605.6,33.28739]
[1752012436442,0.76737,2605.7,2605.6,32.52]
[1752012436944,0.76737,2605.7,2605.6,33.28739]
[1752012437441,0.76737,2605.7,2605.6,32.52]
[1752012438845,0.76737,2605.7,2605.6,33.28739]
[1752012439145,0.76737,2605.7,2605.6,32.52]
[1752012439337,0.76737,2605.7,2605.6,33.28739]
[1752012440142,0.76737,2605.8,2605.7,0.76734]
[1752012440447,0.76737,2605.8,2605.7,2.9929]
[1752012440844,0.76737,2605.8,2605.7,3.76027]
[1752012441948,0.9739,2605.9,2605.8,0.76734]
[1752012442148,0.9739,2605.9,2605.8,33.49190601]
[1752012442348,0.9739,2605.9,2605.8,35.04904]
[1752012442551,0.76714,2606.6,2606.5,0.7671]
[1752012442850,0.76708,2606.8,2606.7,0.76705]
[1752012443049,0.76703,2606.9,2606.8,1.80051]
[1752012443251,0.76694,2607.2,2607.1,0.76693]
[1752012443549,0.76692,2607.2,2607.1,4.8901]
[1752012443744,2.70800845,2607.2,2607.1,30.1836]
[1752012443950,2.06380845,2607.2,2607.1,30.1836]
[1752012444160,2.70800845,2607.2,2607.1,30.1836]
[1752012444352,0.76691,2607.3,2607.1,31.2171]
[1752012444550,0.76691,2607.3,2607.2,1.8004]
[1752012444750,0.76691,2607.3,2607.2,2.4492]
[1752012445655,2.06379845,2607.3,2607.2,1.6539]
[1752012445856,2.70799845,2607.3,2607.2,1.6539]
[1752012446252,1.0367,2607.5,2607.2,2.6874]
[1752012446553,0.76686,2607.4,2607.3,28.12738]
[1752012446755,1.41106,2607.4,2607.3,28.0093]
[1752012447055,0.76686,2607.4,2607.3,28.0093]
[1752012447252,1.41106,2607.4,2607.3,28.0093]
[1752012447453,0.76686,2607.4,2607.3,28.0093]
[1752012447854,1.41106,2607.4,2607.3,28.0093]
[1752012448051,0.76689,2607.3,2607.2,1.0051]
[1752012448257,1.41109,2607.3,2607.2,27.3401]
[1752012448455,1.41109,2607.3,2607.2,27.9889]
[1752012449354,1.41109,2607.3,2607.2,26.331]
[1752012449549,3.64849,2607.3,2607.2,26.331]
[1752012449752,3.64849,2607.3,2607.2,26.9798]
[1752012449957,3.64849,2607.3,2607.2,26.331]
[1752012450555,3.64849,2607.3,2607.2,26.9838]
[1752012455965,0.76689,2607.3,2607.2,28.0173]
[1752012456569,1.41109,2607.3,2607.2,28.0173]
[1752012457272,1.41109,2607.3,2607.2,28.78422]
[1752012457273,0.6442,2607.3,2607.2,28.78422]
[1752012457470,1.77805,2607.9,2607.2,36.85182]
[1752012457673,0.76675,2607.9,2607.8,0.76675]
[1752012457866,0.76675,2607.9,2607.8,27.08675]
[1752012458070,1.41095,2607.9,2607.8,26.32]
[1752012459272,2.70783845,2607.9,2607.8,26.32]
[1752012459566,2.06363845,2607.9,2607.8,26.32]
[1752012459874,3.65953845,2607.9,2607.8,26.9688]
[1752012460273,3.65953845,2607.9,2607.8,0.6488]
[1752012460571,3.65953845,2607.9,2607.8,26.9608]
[1752012461971,2.70783845,2607.9,2607.8,26.9608]
[1752012466273,3.65953845,2607.9,2607.8,26.9608]
[1752012467174,2.70783845,2607.9,2607.8,26.9608]
[1752012467373,0.76675,2607.9,2607.8,26.9608]
[1752012467575,0.76675,2607.9,2607.8,28.76105]
[1752012468876,1.41095,2607.9,2607.8,27.9943]
[1752012469076,1.41095,2607.9,2607.8,26.9608]
[1752012469279,0.76675,2607.9,2607.8,26.9608]
[1752012469582,1.41095,2607.9,2607.8,26.9608]
[1752012469973,2.36265,2607.9,2607.8,26.9608]
[1752012470177,1.41095,2607.9,2607.8,26.9608]
[1752012470680,1.40825,2607.9,2607.8,26.9608]
[1752012470873,0.76675,2607.9,2607.8,26.9608]
[1752012471073,1.40825,2607.9,2607.8,26.9608]
[1752012472480,3.41463776,2608.6,2607.8,31.15923845]
[1752012472684,2.17268615,2608.4,2608.3,3.9744]
[1752012472880,2.17268615,2608.4,2608.3,33.20798845]
[1752012473181,2.17268615,2608.4,2608.3,31.1445]
[1752012473376,2.17268615,2608.4,2608.3,26.952]
[1752012473575,2.81418615,2608.4,2608.3,26.952]
[1752012473770,2.81418615,2608.4,2608.3,0.645]
[1752012474071,2.17268615,2608.4,2608.3,27.9367]
[1752012475479,2.81418615,2608.4,2608.3,27.9367]
[1752012476882,1.4081,2608.4,2608.3,27.9367]
[1752012479384,1.4081,2608.4,2608.3,26.952]
[1752012479779,1.4081,2608.4,2608.3,27.9367]
[1752012479977,1.4081,2608.4,2608.3,26.952]
[1752012481482,1.4081,2608.4,2608.3,27.9367]
[1752012481679,0.7666,2608.4,2608.3,27.9367]
[1752012481877,0.7666,2608.4,2608.3,28.7033]
[1752012482078,0.7666,2608.4,2608.3,31.9111]
[1752012482781,0.7666,2608.4,2608.3,31.1445]
[1752012483582,0.7666,2608.4,2608.3,31.9111]
[1752012484687,0.7666,2608.4,2608.3,31.1445]
[1752012485479,1.4081,2608.4,2608.3,27.9367]
[1752012486488,1.4081,2608.4,2608.3,26.952]
[1752012486888,1.4081,2608.4,2608.3,27.9367]
[1752012489891,1.91655,2608.3,2608.0,6.64260977]
[1752012490093,2.06354845,2608.1,2608.0,7.28760977]
[1752012490293,0.76669,2608.0,2607.9,3.43480977]
[1752012490499,1.40819,2608.0,2607.9,4.07980977]
[1752012490796,0.76672,2607.9,2607.8,1.0027]
[1752012491094,2.42702,2607.9,2607.8,31.38150977]
[1752012491486,2.42702,2607.9,2607.8,27.9467]
[1752012491689,2.42702,2607.9,2607.8,5.0745999]
[1752012491891,0.76675,2607.8,2607.7,3.4268999]
[1752012492098,2.43995,2607.8,2607.7,3.4268999]
[1752012492595,0.76681,2607.6,2607.5,29.7258999]
[1752012492796,2.70519845,2607.6,2607.5,26.299]
[1752012493097,2.70519845,2607.6,2607.5,26.944]
[1752012493897,0.76684,2607.5,2607.4,3.2078]
[1752012494099,1.40834,2607.5,2607.4,30.1538]
[1752012495393,1.40834,2607.5,2607.4,0.645]
[1752012495897,0.76689,2607.3,2607.2,1.0027]
[1752012496096,0.76689,2607.3,2607.2,27.9487]
[1752012496299,1.40839,2607.3,2607.2,27.9487]
[1752012496802,1.40839,2607.3,2607.2,27.9497]
[1752012497002,0.76689,2607.3,2607.2,1.6477]
[1752012497202,1.40839,2607.3,2607.2,27.9497]
[1752012500403,1.40839,2607.3,2607.2,1.0027]
[1752012500598,1.40839,2607.3,2607.2,27.3067]
[1752012500803,1.40839,2607.3,2607.2,27.9423]
[1752012501508,0.76698,2607.0,2606.9,3.4268999]
[1752012501707,1.39808,2607.0,2606.9,30.3654999]
[1752012501908,1.39808,2607.0,2606.9,0.6356]
[1752012502113,1.39808,2607.0,2606.9,26.9386]
[1752012503202,1.39808,2607.0,2606.7,1.0358]
[1752012503203,0.76704,2606.8,2606.7,1.0358]
[1752012503402,0.76704,2606.8,2606.7,28.9178]
[1752012504507,1.39814,2606.8,2606.7,28.9178]
[1752012505905,0.76704,2606.8,2606.7,28.9178]
[1752012507002,1.39814,2606.8,2606.7,28.9178]
[1752012507201,0.76704,2606.8,2606.7,28.9178]
[1752012507603,1.39814,2606.8,2606.7,27.9754]
[1752012507803,1.39814,2606.8,2606.7,1.6714]
[1752012507999,1.39814,2606.8,2606.4,3.4268999]
[1752012508000,3.55875,2606.8,2606.4,3.4268999]
[1752012508212,0.76716,2606.4,2606.3,30.7051999]
[1752012508407,0.76716,2606.4,2606.3,1.6079]
[1752012508608,0.76716,2606.4,2605.9,0.76728]
[1752012508609,1.91794,2606.4,2605.9,4.3692999]
[1752012508910,0.76728,2606.0,2605.9,1.9147]
[1752012509100,0.76728,2606.0,2605.9,2.5503]
[1752012509300,0.76728,2606.0,2605.9,28.8573]
[1752012510508,0.76728,2606.0,2605.9,27.9149]
[1752012512107,0.76728,2606.0,2605.9,27.2793]
[1752012512412,0.76728,2606.0,2605.9,28.8573]
[1752012512604,0.76728,2606.0,2605.9,29.62461]
[1752012512811,0.76728,2606.1,2606.0,0.76725]
[1752012513317,0.76728,2606.1,2606.0,2.34525]
[1752012513519,0.76728,2606.1,2606.0,1.578]
[1752012514020,1.39838,2606.1,2606.0,1.578]
[1752012514224,0.76728,2606.1,2606.0,1.578]
[1752012514409,1.39838,2606.1,2606.0,1.578]
[1752012514610,0.76728,2606.1,2606.0,1.578]
[1752012514914,0.76722,2606.3,2606.2,0.76722]
[1752012515120,0.7672,2606.4,2606.3,0.76716]
[1752012515321,0.7672,2606.4,2606.3,2.38216]
[1752012515521,0.7672,2606.4,2606.3,29.63656]
[1752012516024,0.76716,2606.5,2606.4,0.76713]
[1752012516210,0.76713,2606.6,2606.5,0.7671]
[1752012516415,0.76707,2606.8,2606.7,0.76704]
[1752012516716,0.76707,2606.8,2606.7,28.65704]
[1752012516916,0.76707,2606.8,2606.7,28.65707]
[1752012517118,3.3125,2607.4,2606.7,36.10454845]
[1752012517119,0.76697,2607.1,2606.7,36.10454845]
[1752012517324,0.76697,2607.1,2607.0,0.76698]
[1752012517517,0.76697,2607.1,2607.0,27.71458]
[1752012517820,0.76697,2607.1,2607.0,28.65698]
[1752012518215,0.76697,2607.1,2607.0,27.89]
[1752012518414,0.76697,2607.1,2607.0,28.65698]
[1752012518614,0.76697,2607.1,2607.0,27.89]
[1752012519119,0.76697,2607.1,2607.0,28.65698]
[1752012519516,0.76697,2607.1,2607.0,27.89]
[1752012519920,1.39807,2607.1,2607.0,27.89]
[1752012520223,0.76697,2607.1,2607.0,27.89]
[1752012520423,1.39807,2607.1,2607.0,27.89]
[1752012520718,0.76697,2607.1,2607.0,27.89]
[1752012520915,1.39807,2607.1,2607.0,27.89]
[1752012522511,1.39807,2607.1,2607.0,26.9476]
[1752012522716,1.39807,2607.1,2607.0,28.65698]
[1752012522915,5.5103,2607.4,2607.0,29.80743]
[1752012523116,3.9747,2607.4,2607.3,0.76689]
[1752012523321,3.9747,2607.4,2607.3,27.71249]
[1752012523524,0.7669,2607.4,2607.3,28.65489]
[1752012524221,0.76686,2607.5,2607.4,0.76685]
[1752012524523,0.76683,2607.6,2607.5,0.76681]
[1752012524723,0.76683,2607.6,2607.5,27.71241]
[1752012525022,0.76683,2607.6,2607.5,28.65481]
[1752012526224,1.91689,2607.8,2607.5,28.65481]
[1752012526225,0.76676,2607.8,2607.7,0.76675]
[1752012526531,0.76676,2607.8,2607.7,28.65475]
[1752012527621,0.76676,2607.8,2607.7,27.888]
[1752012527815,1.39786,2607.8,2607.7,26.31]
[1752012528024,2.69474845,2607.8,2607.7,26.9456]
[1752012530621,2.69474845,2607.8,2607.7,26.9406]
[1752012531120,2.06364845,2607.8,2607.7,26.9406]
[1752012531320,2.71294845,2607.8,2607.7,26.9406]
[1752012531522,2.06364845,2607.8,2607.7,26.9406]
[1752012532120,1.41606,2607.8,2607.7,27.70738]
[1752012532328,0.76676,2607.8,2607.7,28.64978]
[1752012532524,0.76676,2607.8,2607.7,27.883]
[1752012532919,1.41606,2607.8,2607.7,27.883]
[1752012534129,1.41606,2607.8,2607.7,26.305]
[1752012534628,1.41606,2607.8,2607.7,26.9533]
[1752012534923,1.41606,2607.8,2607.7,0.6483]
[1752012535128,0.76684,2607.5,2607.4,0.9588]
[1752012535329,0.76684,2607.5,2607.4,29.70916]
[1752012535622,1.41614,2607.5,2607.4,1.6071]